bitfinex/quotes_ETHUSD_20240827
["timestamp","ask_amount","ask_price","bid_price","bid_amount"]
[1724775906473,28.92949758,2591.5,2590.9,13.78108369]
[1724775906474,28.92949758,2591.5,2590.9,13.61695]
[1724775906674,28.92949758,2591.5,2590.9,9.78325837]
[1724775906878,28.92949758,2591.5,2591.0,3.85951]
[1724775907204,28.92949758,2591.5,2591.1,3.85927]
[1724775908227,28.92949758,2591.5,2591.0,3.85949]
[1724775908794,0.11117453,2591.6,2591.2,3.85913]
[1724775909313,3.96985453,2591.6,2591.0,5.13778284]
[1724775909485,3.85898,2591.4,2590.8,6.85971]
[1724775909684,13.83656,2591.5,2590.8,6.85971]
[1724775910004,13.83656,2591.5,2590.9,3.85958]
[1724775910206,3.85899,2591.4,2590.8,10.71943]
[1724775910412,13.83656,2591.5,2590.9,3.85963]
[1724775910719,13.83654,2591.5,2590.9,6.30968137]
[1724775911032,13.83654,2591.5,2591.0,3.8595]
[1724775911205,13.83654,2591.5,2590.9,3.85965]
[1724775911526,17.6954,2591.5,2590.9,3.85965]
[1724775911819,3.85899,2591.4,2590.8,6.85971]
[1724775912072,3.85899,2591.4,2590.8,10.71944]
[1724775912203,3.85899,2591.4,2590.8,9.30976237]
[1724775912405,3.85899,2591.4,2590.8,6.85971]
[1724775912795,3.85899,2591.4,2590.8,3.0]
[1724775912983,3.85916,2591.3,2590.8,3.0]
[1724775914025,3.85921,2591.2,2590.8,3.0]
[1724775914597,3.85899,2591.4,2590.8,3.0]
[1724775914927,5.242749,2591.3,2590.8,3.0]
[1724775915088,3.85923,2591.2,2590.8,3.0]
[1724775915289,9.9758,2591.1,2590.7,3.0]
[1724775915524,13.83517,2591.1,2590.7,3.0]
[1724775915698,3.85968,2590.9,2590.2,3.8606]
[1724775915913,3.85953,2591.0,2590.4,3.86039]
[1724775916430,6.03137837,2591.0,2590.4,7.72078]
[1724775916641,6.03137837,2591.0,2590.4,7.72071]
[1724775916998,6.03137837,2591.0,2590.5,3.0]
[1724775917398,6.03137837,2591.0,2590.5,6.86024]
[1724775917593,6.03137837,2591.0,2590.5,3.0]
[1724775917991,6.03137837,2591.0,2590.5,6.86023]
[1724775918807,6.03137837,2591.0,2590.5,3.0]
[1724775921493,9.89099837,2591.0,2590.5,3.0]
[1724775921693,6.03137837,2591.0,2590.5,3.0]
[1724775922096,9.9758,2591.1,2590.6,3.8601]
[1724775922335,23.29300758,2591.2,2590.6,3.8601]
[1724775922336,23.29300758,2591.2,2590.6,3.93729612]
[1724775922540,23.29300758,2591.2,2590.6,7.72014]
[1724775922693,23.29300758,2591.2,2590.6,3.86004]
[1724775922901,3.85936,2591.1,2590.6,3.86004]
[1724775923338,3.85936,2591.1,2590.5,16.73666]
[1724775923504,3.85936,2591.1,2590.5,6.86016]
[1724775924621,3.85936,2591.1,2590.6,3.86008]
[1724775925027,19.43369758,2591.2,2590.7,3.93707074]
[1724775925414,3.85964,2591.0,2590.5,3.0]
[1724775925744,3.85964,2591.0,2590.3,9.5552]
[1724775925745,3.85964,2591.0,2590.4,10.72073]
[1724775926211,3.85964,2591.0,2590.5,3.86022]
[1724775926650,23.29268758,2591.4,2590.8,13.45174]
[1724775926831,3.85899,2591.4,2590.9,3.85965]
[1724775927456,3.85899,2591.4,2590.8,13.45174]
[1724775927457,3.85899,2591.4,2590.8,9.592]
[1724775927672,3.85899,2591.4,2590.7,3.85994]
[1724775927673,7.15888876,2591.3,2590.7,3.85994]
[1724775927982,3.85914,2591.3,2590.7,3.85994]
[1724775928763,3.85929,2591.2,2590.6,13.1131]
[1724775928961,9.8849,2591.1,2590.4,13.11339]
[1724775929272,3.85952,2591.0,2590.5,3.86018]
[1724775929788,13.74426,2591.1,2590.5,3.86018]
[1724775930077,19.43369758,2591.5,2590.8,3.8598]
[1724775930078,3.85907,2591.3,2590.8,3.8598]
[1724775930387,3.85907,2591.3,2590.8,3.93698726]
[1724775930738,3.85907,2591.3,2590.8,0.07718726]
[1724775931371,3.85922,2591.2,2590.7,3.85994]
[1724775931580,7.71855,2591.2,2590.7,0.07718727]
[1724775931802,7.71855,2591.2,2590.6,3.85999]
[1724775931803,3.85922,2591.2,2590.6,3.85999]
[1724775932009,3.85955,2591.0,2590.5,3.86012]
[1724775932515,3.85967,2590.9,2590.4,9.2531]
[1724775932821,3.85988,2590.8,2590.5,3.0]
[1724775932980,7.71941,2590.9,2590.4,3.0]
[1724775933306,3.85967,2590.9,2590.4,3.0]
[1724775933606,3.85982,2590.8,2590.4,3.0]
[1724775933906,3.85982,2590.8,2590.3,3.0]
[1724775934314,3.86018,2590.6,2590.3,3.0]
[1724775934477,3.86026,2590.5,2590.1,3.0]
[1724775934677,9.6803,2590.6,2590.1,3.0]
[1724775934870,13.54044,2590.6,2590.1,3.0]
[1724775935070,3.86055,2590.3,2589.7,9.573]
[1724775935310,3.86081,2590.2,2589.5,9.573]
[1724775935607,3.8616,2589.6,2589.1,9.9403]
[1724775935768,3.86136,2589.8,2589.1,13.80262]
[1724775935964,3.86136,2589.8,2589.1,9.9403]
[1724775936569,3.86162,2589.6,2589.1,9.9403]
[1724775937715,3.86162,2589.6,2588.9,3.8625]
[1724775937909,3.86162,2589.6,2588.9,7.72505]
[1724775938075,3.86162,2589.6,2588.9,9.89396337]
[1724775938269,3.86162,2589.6,2588.9,6.03141337]
[1724775938505,3.86162,2589.6,2588.9,9.89396337]
[1724775938890,3.86162,2589.6,2589.0,3.0]
[1724775939279,7.72329,2589.6,2589.0,3.0]
[1724775939481,8.495619,2589.6,2589.0,3.0]
[1724775940019,3.86193,2589.4,2589.0,3.0]
[1724775940204,3.86193,2589.4,2588.9,3.0]
[1724775940205,3.86208,2589.3,2588.9,3.0]
[1724775940414,9.1759,2589.5,2588.6,13.80328]
[1724775940415,3.8622,2589.2,2588.6,13.80328]
[1724775940927,3.8622,2589.2,2588.5,3.86312]
[1724775940928,13.38752,2589.1,2588.5,3.8632]
[1724775941082,9.5251,2589.1,2588.6,3.86307]
[1724775941727,19.43369758,2589.3,2588.6,0.772632]
[1724775941933,19.43369758,2589.3,2589.0,3.86247]
[1724775942714,19.43369758,2589.3,2589.2,3.86219]
[1724775942894,13.3864,2589.8,2589.2,3.86219]
[1724775943225,13.19323276,2589.8,2588.9,12.0395]
[1724775943722,3.86167,2589.6,2589.0,3.86248]
[1724775943920,3.86167,2589.6,2589.1,6.86234]
[1724775944081,13.38651,2589.8,2589.1,6.86234]
[1724775944082,13.38651,2589.8,2589.2,1.072482]
[1724775944420,13.38651,2589.8,2589.1,6.86234]
[1724775944727,13.38651,2589.8,2589.1,3.0]
[1724775944728,3.86153,2589.7,2589.1,3.0]
[1724775944894,3.86161,2589.6,2589.1,3.0]
[1724775945421,3.86161,2589.6,2589.1,4.99256937]
[1724775945825,3.86141,2589.8,2589.1,8.85489937]
[1724775945979,3.86147,2589.7,2589.1,8.85489937]
[1724775946813,3.86164,2589.6,2589.1,4.99256937]
[1724775947041,3.86164,2589.6,2589.1,3.0]
[1724775947532,3.86164,2589.6,2589.1,6.86231]
[1724775947681,3.86145,2589.7,2589.1,6.86231]
[1724775949862,3.86167,2589.6,2589.1,3.0]
[1724775950030,13.653915,2589.6,2589.1,3.0]
[1724775951043,3.86177,2589.5,2589.0,3.86249]
[1724775951570,3.86206,2589.3,2588.7,13.08842]
[1724775951747,3.86212,2589.3,2588.7,13.08842]
[1724775952275,3.86205,2589.3,2588.7,16.95119]
[1724775952423,5.2273215,2589.4,2588.7,13.08833]
[1724775952621,4.38489215,2589.3,2588.7,13.08833]
[1724775952831,3.86228,2589.2,2588.7,9.2255]
[1724775953325,3.86236,2589.1,2588.7,9.2255]
[1724775953666,3.86221,2589.2,2588.7,9.2255]
[1724775953983,6.38060612,2589.2,2588.7,13.08844]
[1724775954262,23.29574758,2589.3,2588.7,13.08844]
[1724775954625,27.15786758,2589.3,2588.7,13.08844]
[1724775954828,27.15788758,2589.3,2588.7,13.08844]
[1724775955052,23.29574758,2589.3,2588.7,13.08844]
[1724775955254,27.15789758,2589.3,2588.7,13.08844]
[1724775956125,3.86236,2589.1,2588.5,6.86314]
[1724775956329,3.86253,2589.0,2588.5,3.86314]
[1724775956521,3.86274,2588.9,2588.4,9.364]
[1724775956727,0.772527,2588.9,2588.4,9.364]
[1724775956949,3.86253,2589.0,2588.4,9.364]
[1724775957340,3.86267,2588.9,2588.4,9.364]
[1724775958334,3.86279,2588.8,2588.4,9.364]
[1724775958540,9.1242,2588.7,2588.1,3.0]
[1724775958766,3.86336,2588.5,2588.0,14.2839]
[1724775959127,3.86309,2588.6,2588.0,14.2839]
[1724775959128,3.86339,2588.4,2588.0,14.2839]
[1724775959628,3.86309,2588.6,2588.0,14.2839]
[1724775959826,8.28130796,2588.6,2588.0,18.14788]
[1724775960039,7.72628,2588.6,2588.0,18.14788]
[1724775960240,3.86346,2588.4,2588.0,5.0]
[1724775960479,16.43369758,2588.6,2588.0,5.0]
[1724775960630,3.86354,2588.3,2588.0,5.0]
[1724775961041,6.71913976,2588.5,2588.0,5.0]
[1724775961343,16.43369758,2588.6,2588.3,3.86346]
[1724775961638,16.43369758,2588.6,2588.1,13.66839]
[1724775962059,20.29689758,2588.6,2588.1,9.8047]
[1724775962259,20.29685758,2588.6,2588.1,9.8047]
[1724775962870,24.16002758,2588.6,2588.1,9.8047]
[1724775963040,22.71286034,2588.6,2588.1,9.8047]
[1724775963237,20.29685758,2588.6,2588.1,9.8047]
[1724775963697,16.43369758,2588.6,2588.1,13.6685]
[1724775963872,16.43369758,2588.6,2588.2,3.94086957]
[1724775964042,16.43369758,2588.6,2588.2,3.8636]
[1724775964382,20.29685758,2588.6,2588.1,9.8047]
[1724775964579,3.86325,2588.5,2588.1,9.8047]
[1724775964756,20.29685758,2588.6,2588.1,9.8047]
[1724775965172,7.72639,2588.6,2588.1,9.8047]
[1724775965375,14.431599,2588.6,2588.0,5.0]
[1724775965880,3.86339,2588.4,2588.0,5.0]
[1724775967441,13.65896,2588.6,2588.0,8.86394]
[1724775967644,16.43369758,2588.9,2588.3,3.86346]
[1724775967645,20.29636758,2588.9,2588.3,3.86346]
[1724775967898,3.86256,2589.0,2588.4,3.94057117]
[1724775968203,3.86256,2589.0,2588.5,1.31445712]
[1724775968706,3.86236,2589.1,2588.5,1.31445712]
[1724775968707,3.86265,2588.9,2588.5,1.31445712]
[1724775968907,3.8622,2589.2,2588.6,13.67983881]
[1724775969194,3.8622,2589.2,2588.8,3.86271]
[1724775969195,16.43369758,2589.2,2588.8,3.86271]
[1724775969360,16.43369758,2589.2,2588.9,9.7396]
[1724775971353,16.43369758,2589.2,2588.7,10.83102959]
[1724775971707,3.86261,2589.0,2588.5,9.3316]
[1724775971852,4.03133243,2589.0,2588.3,3.0]
[1724775972053,20.29591758,2589.2,2588.0,5.0]
[1724775972054,3.86317,2588.6,2588.0,5.0]
[1724775972258,3.86328,2588.5,2588.0,5.0]
[1724775973290,13.84645,2588.7,2588.0,8.86398]
[1724775973291,17.7095,2588.7,2588.0,8.86398]
[1724775973607,3.86324,2588.5,2588.0,5.0]
[1724775974156,1.77095,2588.6,2588.0,5.0]
[1724775974157,3.86351,2588.4,2588.0,5.0]
[1724775974407,3.86348,2588.4,2588.0,5.0]
[1724775974764,3.86366,2588.3,2588.0,5.0]
[1724775975115,1.771064,2588.2,2588.0,5.0]
[1724775975265,3.86366,2588.3,2588.0,5.0]
[1724775976377,13.84698,2588.4,2588.0,5.0]
[1724775976720,3.86355,2588.3,2588.0,5.0]
[1724775976924,3.86383,2588.1,2588.0,5.0]
[1724775977227,3.86355,2588.3,2588.0,5.0]
[1724775977415,1.78783824,2588.2,2588.0,5.0]
[1724775977625,3.86359,2588.3,2588.0,5.0]
[1724775977925,3.86353,2588.4,2588.0,14.4994]
[1724775978222,3.86355,2588.3,2588.0,5.0]
[1724775978399,4.249903,2588.3,2588.0,5.0]
[1724775978606,3.86369,2588.2,2588.0,5.0]
[1724775978777,3.86383,2588.1,2588.0,5.0]
[1724775979623,3.86369,2588.2,2588.0,5.0]
[1724775979827,13.17747,2588.4,2588.0,5.0]
[1724775979978,9.044937,2588.3,2588.0,5.0]
[1724775980685,9.044967,2588.3,2588.0,5.0]
[1724775981423,1.317747,2588.3,2588.0,5.0]
[1724775981639,3.86342,2588.4,2588.0,5.0]
[1724775982913,3.86334,2588.5,2588.0,5.0]
[1724775982914,3.86354,2588.3,2588.0,5.0]
[1724775983590,3.86339,2588.4,2588.0,5.0]
[1724775983792,4.249729,2588.4,2588.0,5.0]
[1724775984134,3.86339,2588.4,2588.0,5.0]
[1724775984687,7.72687,2588.4,2588.0,5.0]
[1724775984887,3.86339,2588.4,2588.0,5.0]
[1724775986032,7.72686,2588.4,2588.0,5.0]
[1724775986234,3.86355,2588.3,2588.0,5.0]
[1724775986533,6.27961376,2588.3,2588.0,5.0]
[1724775987195,9.9526,2588.2,2588.0,5.0]
[1724775987996,6.27961376,2588.3,2588.0,5.0]
[1724775988514,7.72766,2588.1,2588.0,5.0]
[1724775989711,17.65446,2588.1,2588.0,5.0]
[1724775989920,20.4510647,2588.1,2588.0,5.0]
[1724775990130,24.3148947,2588.1,2588.0,5.0]
[1724775990435,31.7287247,2588.1,2588.0,5.0]
[1724775991033,35.76068789,2588.1,2588.0,5.0]
[1724775991240,31.89685789,2588.1,2588.0,5.0]
[1724775992349,35.76068789,2588.1,2588.0,5.0]
[1724775992698,35.76068789,2588.1,2588.0,4.8046875]
[1724775993400,35.82798535,2588.1,2588.0,4.8046875]
[1724775993602,31.96415535,2588.1,2588.0,4.8046875]
[1724775994024,31.89685789,2588.1,2588.0,4.8046875]
[1724775994913,35.76068789,2588.1,2588.0,4.8046875]
[1724775995241,35.76068789,2588.1,2588.0,3.63223382]
[1724775997440,35.76068789,2588.1,2586.7,9.5872]
[1724775997441,3.86578,2586.8,2586.7,9.5872]
[1724775997745,3.86563,2586.9,2586.7,9.5872]
[1724775998535,3.86563,2586.9,2586.3,3.86649]
[1724775999317,3.86563,2586.9,2586.3,7.73289]
[1724775999546,3.86553,2587.0,2586.3,9.740789]
[1724775999743,7.73109,2587.0,2586.3,9.740789]
[1724776000041,3.86553,2587.0,2586.5,13.21232]
[1724776000240,3.86553,2587.0,2586.5,9.3461]
[1724776000940,27.73897758,2587.2,2586.5,11.2547789]
[1724776001140,27.73897758,2587.2,2586.6,3.86607]
[1724776001341,3.86533,2587.1,2586.5,13.21231]
[1724776001506,3.86533,2587.1,2586.4,3.86635]
[1724776001507,3.86565,2586.9,2586.4,3.86635]
[1724776002642,3.86549,2587.0,2586.4,7.73264]
[1724776002855,27.73887758,2587.2,2586.5,9.6192]
[1724776003051,27.73887758,2587.2,2586.6,3.86601]
[1724776003548,23.87369758,2587.2,2586.6,3.86598]
[1724776003749,23.87369758,2587.2,2586.8,3.86565]
[1724776004054,23.87369758,2587.2,2586.7,3.86584]
[1724776004411,27.73887758,2587.2,2586.6,5.6706375]
[1724776004745,23.87369758,2587.2,2586.6,5.6706375]
[1724776005050,23.87369758,2587.2,2586.8,3.86577]
[1724776005921,27.73889758,2587.2,2586.7,13.86322]
[1724776006145,27.73889758,2587.2,2586.7,9.9973]
[1724776006379,3.86539,2587.1,2586.7,9.9973]
[1724776007033,15.17046,2587.2,2586.7,9.9973]
[1724776007238,11.3052,2587.2,2586.7,9.9973]
[1724776007676,15.17046,2587.2,2586.7,9.9973]
[1724776007878,11.3052,2587.2,2586.7,9.9973]
[1724776009839,20.9944,2587.2,2586.6,3.86604]
[1724776010037,3.8657,2586.9,2586.3,13.61001]
[1724776010249,7.73141,2586.9,2586.3,13.61001]
[1724776010545,3.8657,2586.9,2586.3,13.61001]
[1724776011079,3.8657,2586.9,2586.3,17.47646]
[1724776011285,3.8657,2586.9,2586.4,3.86637]
[1724776011589,3.86558,2587.0,2586.3,16.06085232]
[1724776011882,3.86558,2587.0,2586.4,3.86628]
[1724776012381,3.86565,2586.9,2586.4,3.86628]
[1724776012679,3.86565,2586.9,2586.3,16.06085232]
[1724776012680,3.86564,2586.9,2586.3,19.92724232]
[1724776012893,3.86564,2586.9,2586.4,3.86634]
[1724776013189,3.86558,2587.0,2586.5,3.86622]
[1724776013345,3.86558,2587.0,2586.4,5.85907423]
[1724776013553,3.86558,2587.0,2586.5,3.86621]
[1724776014397,3.86558,2587.0,2586.4,5.85908423]
[1724776014751,3.8657,2586.9,2586.4,5.85908423]
[1724776015091,3.86558,2587.0,2586.4,7.73265]
[1724776015392,3.86569,2586.9,2586.4,3.86629]
[1724776016373,3.86536,2587.1,2586.3,9.7436]
[1724776016578,9.0377,2587.3,2586.8,3.86567]
[1724776016579,3.86505,2587.3,2586.8,3.86567]
[1724776016762,15.90215,2587.7,2586.7,13.36692]
[1724776016964,3.86558,2587.0,2586.3,3.86649]
[1724776017177,3.8652,2587.2,2586.2,9.5011]
[1724776017178,3.866,2586.7,2586.2,13.36775]
[1724776017396,3.86624,2586.5,2586.2,9.5011]
[1724776017580,3.86615,2586.6,2585.9,13.36816]
[1724776017765,3.86615,2586.6,2586.0,6.86695]
[1724776017766,3.86629,2586.5,2586.0,6.86695]
[1724776018298,3.86629,2586.5,2586.0,3.0]
[1724776018653,3.86629,2586.5,2586.0,6.86696]
[1724776018895,5.63699012,2586.6,2586.0,10.73386]
[1724776019075,5.63699012,2586.6,2586.0,6.8669]
[1724776019387,3.86623,2586.5,2586.0,6.8669]
[1724776020188,5.63700012,2586.6,2586.0,6.8669]
[1724776020395,5.63700012,2586.6,2586.0,10.73379]
[1724776020759,5.63700012,2586.6,2586.0,6.86689]
[1724776020961,5.63700012,2586.6,2586.0,10.73378]
[1724776021163,5.63700012,2586.6,2586.0,6.86689]
[1724776021584,5.63700012,2586.6,2586.1,3.8668]
[1724776021991,1.77090012,2586.6,2586.1,3.8668]
[1724776022875,13.61152,2587.0,2586.4,3.8663]
[1724776023079,13.61152,2587.0,2586.3,3.86641]
[1724776023394,3.86579,2586.8,2586.3,3.86641]
[1724776023598,0.386579,2586.7,2586.3,3.86641]
[1724776024498,0.386579,2586.7,2586.4,3.86635]
[1724776024670,3.86567,2586.9,2586.4,3.86635]
[1724776024877,3.86567,2586.9,2586.3,3.86641]
[1724776027208,7.73116,2587.0,2586.5,9.5349]
[1724776027499,3.86573,2586.9,2586.5,9.5349]
[1724776028001,3.86573,2586.9,2586.3,3.86641]
[1724776028002,3.86579,2586.8,2586.3,13.40131]
[1724776028208,3.86593,2586.7,2586.3,9.5349]
[1724776029281,3.86623,2586.5,2586.0,16.8633]
[1724776030414,3.86623,2586.5,2586.0,12.9964]
[1724776030621,3.86623,2586.5,2586.0,16.8633]
[1724776031107,3.8661,2586.6,2586.0,16.8633]
[1724776031322,5.62674576,2586.6,2586.1,3.86682]
[1724776031824,3.8661,2586.6,2586.1,3.86682]
[1724776032514,3.86601,2586.7,2586.2,3.86661]
[1724776032722,0.5545476,2586.8,2586.3,3.86652]
[1724776032871,13.32605,2586.9,2586.4,9.1903]
[1724776033074,13.32605,2586.9,2586.4,13.05665]
[1724776033271,13.32605,2586.9,2586.4,9.1903]
[1724776033476,7.73166,2586.8,2586.4,9.1903]
[1724776033724,7.73166,2586.8,2586.3,3.86652]
[1724776033886,3.36257576,2586.7,2586.3,3.86652]
[1724776034483,3.86608,2586.6,2586.2,9.1903]
[1724776034775,9.515,2586.5,2585.5,3.86759]
[1724776035090,3.86689,2586.1,2585.5,3.86771]
[1724776035295,3.86699,2586.0,2585.5,3.86771]
[1724776036339,7.73409,2586.0,2585.4,3.86775]
[1724776036478,3.86699,2586.0,2585.4,7.73555]
[1724776037183,4.65664232,2586.2,2585.4,7.73555]
[1724776037184,0.78985232,2586.2,2585.4,1.731625]
[1724776037495,3.86664,2586.3,2585.8,9.2316]
[1724776037681,3.86681,2586.2,2585.8,9.2316]
[1724776037882,3.86685,2586.1,2585.8,9.2316]
[1724776038192,3.86697,2586.0,2585.8,9.2316]
[1724776038392,3.86712,2585.9,2585.8,9.2316]
[1724776038718,3.86712,2585.9,2585.6,9.3318]
[1724776039423,3.86756,2585.7,2585.3,9.1744]
[1724776039732,3.86767,2585.6,2585.3,9.1744]
[1724776039929,3.86788,2585.4,2585.1,9.6257]
[1724776040238,13.28236319,2585.6,2584.9,9.6257]
[1724776040423,3.86847,2585.1,2584.6,9.6955]
[1724776040746,3.86864,2584.9,2584.4,3.86926]
[1724776041019,3.86922,2584.5,2584.2,9.6955]
[1724776041222,4.643045,2584.5,2584.2,9.6955]
[1724776041396,3.86963,2584.3,2583.8,9.70964737]
[1724776041592,20.30332758,2584.3,2583.8,9.70964737]
[1724776041824,20.30332758,2584.3,2583.8,13.57988737]
[1724776041974,20.30332758,2584.3,2583.8,13.47988737]
[1724776042175,23.46459134,2584.3,2583.8,9.60964737]
[1724776042621,23.46459134,2584.3,2583.8,13.47990737]
[1724776042622,16.43369758,2584.3,2583.8,13.47990737]
[1724776042821,16.43369758,2584.3,2584.2,7.73932]
[1724776043524,9.602547,2585.0,2583.9,7.90205319]
[1724776043525,3.94133567,2586.5,2584.1,4.03196319]
[1724776043746,3.86551,2587.0,2585.3,7.89989319]
[1724776043747,3.86716,2585.9,2585.3,7.89989319]
[1724776044255,3.86729,2585.8,2585.3,4.03196319]
[1724776044419,0.773445,2585.8,2585.3,7.89986319]
[1724776044617,7.73381,2586.1,2585.5,7.89960319]
[1724776044924,3.86748,2585.7,2585.1,3.86821]
[1724776045247,3.86792,2585.4,2584.7,16.16017]
[1724776045453,3.86792,2585.4,2584.7,9.2914]
[1724776045652,3.86792,2585.4,2584.8,3.86875]
[1724776045857,0.386792,2585.3,2584.8,3.86875]
[1724776046006,3.86792,2585.4,2584.8,11.76932319]
[1724776046210,3.86792,2585.4,2584.8,11.76933319]
[1724776046408,3.86792,2585.4,2584.9,3.86859]
[1724776046933,3.86814,2585.3,2584.7,9.2914]
[1724776047259,0.386814,2585.2,2584.9,3.86854]
[1724776047438,3.86791,2585.4,2584.8,7.90071319]
[1724776047645,3.86802,2585.3,2584.8,7.90071319]
[1724776048162,3.86828,2585.2,2584.7,9.2914]
[1724776048352,4.255082,2585.2,2584.7,9.2914]
[1724776048709,3.86832,2585.1,2584.7,9.2914]
[1724776048913,3.86832,2585.1,2584.3,13.30428]
[1724776048914,3.86859,2585.0,2584.3,13.30428]
[1724776049166,4.6809282,2585.0,2584.3,13.30428]
[1724776049649,4.6809282,2585.0,2584.4,3.86933]
[1724776049874,4.6808982,2585.0,2584.4,3.86927]
[1724776050023,4.6808882,2585.0,2584.4,3.86927]
[1724776050232,2.11145958,2584.9,2584.4,3.86927]
[1724776050754,2.11145958,2584.9,2584.4,7.73852]
[1724776050953,2.11145958,2584.9,2584.4,3.86925]
[1724776051452,2.11145958,2584.9,2584.4,7.73853]
[1724776051666,2.11145958,2584.9,2584.5,3.86921]
[1724776051860,2.11145958,2584.9,2584.4,3.86925]
[1724776052152,2.11145958,2584.9,2584.4,7.73851]
[1724776052363,2.11145958,2584.9,2584.4,3.86925]
[1724776052514,3.86921,2584.6,2584.0,16.47428]
[1724776052719,3.86899,2584.7,2584.0,16.47424]
[1724776052918,3.86937,2584.4,2583.8,3.87015]
[1724776053523,3.86953,2584.3,2583.7,3.87041]
[1724776054159,3.86931,2584.5,2583.9,3.87011]
[1724776054460,0.45482248,2584.6,2584.1,3.86972]
[1724776054753,0.45482248,2584.6,2584.1,9.7639]
[1724776054978,4.30160225,2584.5,2584.0,3.86989]
[1724776055183,3.86959,2584.3,2583.7,3.87039]
[1724776055484,0.386959,2584.2,2583.7,7.90228319]
[1724776055646,4.30168225,2584.5,2583.9,3.87003]
[1724776055847,4.30168225,2584.5,2583.9,7.74003]
[1724776056186,8.17099225,2584.5,2583.9,3.87]
[1724776056354,4.29955822,2584.4,2583.9,3.87]
[1724776056551,0.43016822,2584.4,2583.9,3.87]
[1724776057151,0.43016822,2584.4,2583.9,7.74002]
[1724776057353,0.43016822,2584.4,2584.0,13.05595]
[1724776057584,0.43016822,2584.4,2584.0,9.186]
[1724776058449,4.29956822,2584.4,2584.0,9.186]
[1724776058698,0.86012505,2584.3,2583.9,3.87]
[1724776058991,8.59931505,2584.3,2583.7,13.36052]
[1724776059142,3.86991,2584.1,2583.5,3.87066]
[1724776059339,0.386991,2584.0,2583.6,3.0]
[1724776060378,20.30336758,2584.2,2583.6,6.87046]
[1724776060545,20.30336758,2584.2,2583.7,3.87038]
[1724776061040,16.43369758,2584.2,2583.7,3.8704]
[1724776061238,16.43369758,2584.2,2583.8,3.87026]
[1724776061542,16.43369758,2584.2,2583.9,13.785]
[1724776061938,16.43369758,2584.2,2584.0,3.86995]
[1724776062188,16.43369758,2584.2,2583.9,13.78511]
[1724776063348,4.29953822,2584.4,2583.9,13.78511]
[1724776063648,6.68684358,2584.3,2583.8,3.86916417]
[1724776064205,2.81732358,2584.3,2583.8,3.86916417]
[1724776064553,3.86967,2584.2,2583.7,3.87029]
[1724776064838,4.58135618,2584.2,2583.8,3.0]
[1724776065251,0.71168618,2584.2,2583.8,6.87023]
[1724776065405,23.87369758,2584.5,2584.1,3.86974]
[1724776065605,23.87369758,2584.5,2583.9,9.55]
[1724776065805,23.87369758,2584.5,2584.0,7.73968]
[1724776066049,23.87369758,2584.5,2584.0,7.7397]
[1724776066625,23.87369758,2584.5,2584.0,3.86982]
[1724776067349,27.74291758,2584.5,2584.0,3.86982]
[1724776067666,7.44,2584.8,2584.3,3.86944]
[1724776067814,16.43369758,2584.9,2584.5,3.86921]
[1724776068013,20.30237758,2584.9,2584.4,9.672]
[1724776068250,3.86877,2584.8,2584.3,3.86944]
[1724776068756,21.32206886,2584.9,2584.4,3.86935]
[1724776068935,21.32206886,2584.9,2584.2,3.86954]
[1724776068936,7.67963038,2584.8,2584.2,3.86954]
[1724776069139,3.86907,2584.6,2584.1,13.54181]
[1724776069450,12.87147,2584.6,2584.0,3.86996]
[1724776069759,12.87147,2584.6,2583.8,12.672]
[1724776069760,1.15487004,2584.6,2584.1,10.7395]
[1724776069996,3.86893,2584.7,2584.2,3.86958]
[1724776070422,3.86893,2584.7,2584.1,3.8697]
[1724776070629,7.34363992,2584.7,2584.1,3.8697]
[1724776070833,11.21267992,2584.7,2584.2,3.86963]
[1724776071138,11.21267992,2584.7,2584.1,3.8698]
[1724776071139,3.86911,2584.6,2584.1,3.8698]
[1724776071343,7.34363992,2584.7,2584.1,3.8698]
[1724776071344,11.21269992,2584.7,2584.1,3.8698]
[1724776071539,1.17289122,2584.6,2584.1,3.8698]
[1724776071742,1.17289122,2584.6,2583.8,16.54224]
[1724776071909,3.86939,2584.4,2583.9,3.87001]
[1724776072326,3.86964,2584.3,2583.8,16.54224]
[1724776072511,3.86968,2584.2,2583.8,3.0]
[1724776072735,29.96868758,2584.4,2583.8,6.87025]
[1724776072736,20.30321758,2584.3,2583.8,6.87025]
[1724776073057,20.30321758,2584.3,2584.1,3.86971]
[1724776073058,16.43369758,2584.3,2584.1,3.86971]
[1724776074016,16.43369758,2584.3,2583.9,3.8701]
[1724776074616,16.43369758,2584.3,2584.0,3.86996]
[1724776075865,16.43369758,2584.3,2584.0,3.86989]
[1724776076653,16.43369758,2584.3,2583.8,6.87018]
[1724776076654,18.54915675,2584.3,2583.9,3.8701]
[1724776077355,16.43369758,2584.3,2584.1,3.86978]
[1724776077990,16.43369758,2584.3,2584.2,3.86966]
[1724776078385,25.0465888,2584.6,2584.2,3.86966]
[1724776078592,3.81083038,2584.5,2584.2,3.86959]
[1724776080862,3.81083038,2584.5,2584.0,9.4021]
[1724776081064,25.0465888,2584.6,2584.2,3.86965]
[1724776081690,28.9157288,2584.6,2584.1,3.86979]
[1724776082480,3.81083038,2584.5,2584.1,3.86979]
[1724776084091,28.9157288,2584.6,2584.1,3.86979]
[1724776084562,25.0465888,2584.6,2584.2,3.86963]
[1724776085787,23.87369758,2584.6,2584.3,0.07739328]
[1724776085954,7.44,2585.2,2584.9,3.86852]
[1724776086156,23.58778,2585.5,2584.9,3.86852]
[1724776086352,7.12607776,2585.4,2584.9,3.86852]
[1724776087275,7.12607776,2585.4,2584.8,3.86873]